[Event "December 5 Early 2023"]
[Site "https://www.chess.com"]
[Date "2023.12.05"]
[Round "5"]
[White "Makhnev, Denis"]
[Black "Shishkov, Andrei"]
[Result "1-0"]
[Board "77"]
[TimeControl "180+1"]
[WhiteFideId "13707647"]
[BlackFideId "4500563"]
[WhiteElo "2681"]
[BlackElo "2491"]
[WhiteTeam "KAZ"]
[BlackTeam "EST"]
[WhiteClock "0:00:41"]
[BlackClock "0:00:02"]

1. Nf3 {[%clk 0:03:00]}  Nf6 {[%clk 0:02:59]} 2. c4 {[%clk 0:03:00]}  e6 {[%clk 0:02:59]} 3. g3 {[%clk 0:02:59]}  d5 {[%clk 0:02:59]} 4. Bg2 {[%clk 0:02:59]}  dxc4 {[%clk 0:02:59]} 5. Qa4+ {[%clk 0:02:58]}  Nbd7 {[%clk 0:02:59]} 6. Qxc4 {[%clk 0:02:58]}  c5 {[%clk 0:03:00]} 7. O-O {[%clk 0:02:57]}  a6 {[%clk 0:03:00]} 8. Qc2 {[%clk 0:02:56]}  b5 {[%clk 0:03:00]} 9. a4 {[%clk 0:02:52]}  Bb7 {[%clk 0:03:00]} 10. axb5 {[%clk 0:02:49]}  axb5 {[%clk 0:03:01]} 11. Rxa8 {[%clk 0:02:48]}  Qxa8 {[%clk 0:03:00]} 12. Na3 {[%clk 0:02:47]}  Bc6 {[%clk 0:02:48]} 13. Nh4 {[%clk 0:02:32]}  Qb7 {[%clk 0:02:38]} 14. Bxc6 {[%clk 0:02:29]}  Qxc6 {[%clk 0:02:39]} 15. d3 {[%clk 0:02:21]}  Be7 {[%clk 0:02:37]} 16. Qb3 {[%clk 0:02:20]}  b4 {[%clk 0:02:05]} 17. Nc4 {[%clk 0:02:19]}  O-O {[%clk 0:02:04]} 18. Nf3 {[%clk 0:02:18]}  Ra8 {[%clk 0:01:57]} 19. Bg5 {[%clk 0:02:15]}  h6 {[%clk 0:01:54]} 20. Bxf6 {[%clk 0:02:15]}  Bxf6 {[%clk 0:01:50]} 21. Rc1 {[%clk 0:02:15]}  Qa4 {[%clk 0:01:43]} 22. Nfd2 {[%clk 0:02:07]}  Qxb3 {[%clk 0:01:40]} 23. Nxb3 {[%clk 0:02:08]}  Ra2 {[%clk 0:01:40]} 24. Ra1 {[%clk 0:02:01]}  Rxa1+ {[%clk 0:01:34]} 25. Nxa1 {[%clk 0:02:02]}  Kf8 {[%clk 0:01:33]} 26. Nb3 {[%clk 0:02:02]}  Ke7 {[%clk 0:01:31]} 27. f4 {[%clk 0:01:59]}  Kd8 {[%clk 0:01:28]} 28. Kf2 {[%clk 0:01:55]}  Kc7 {[%clk 0:01:24]} 29. Kf3 {[%clk 0:01:53]}  Kc6 {[%clk 0:01:17]} 30. e4 {[%clk 0:01:48]}  Bd4 {[%clk 0:00:53]} 31. h4 {[%clk 0:01:42]}  h5 {[%clk 0:00:52]} 32. g4 {[%clk 0:01:34]}  hxg4+ {[%clk 0:00:51]} 33. Kxg4 {[%clk 0:01:34]}  g6 {[%clk 0:00:48]} 34. h5 {[%clk 0:01:25]}  Nf6+ {[%clk 0:00:45]} 35. Kg5 {[%clk 0:01:21]}  Nxh5 {[%clk 0:00:45]} 36. Nxd4+ {[%clk 0:01:20]}  cxd4 {[%clk 0:00:46]} 37. Ne5+ {[%clk 0:01:21]}  Kb5 {[%clk 0:00:38]} 38. Nxf7 {[%clk 0:01:20]}  Ka4 {[%clk 0:00:38]} 39. Ne5 {[%clk 0:00:48]}  Kb3 {[%clk 0:00:38]} 40. Nxg6 {[%clk 0:00:47]}  Ng3 {[%clk 0:00:13]} 41. f5 {[%clk 0:00:41]}  exf5 {[%clk 0:00:14]} 42. exf5 {[%clk 0:00:41]}  Nxf5 {[%clk 0:00:14]} 43. Kxf5 {[%clk 0:00:42]}  Kxb2 {[%clk 0:00:14]} 44. Ke4 {[%clk 0:00:41]}  Kc3 {[%clk 0:00:12]} 45. Ne5 {[%clk 0:00:41]}  b3 {[%clk 0:00:13]} 46. Nc4 {[%clk 0:00:41]}  b2 {[%clk 0:00:07]} 47. Nxb2 {[%clk 0:00:41]}  Kxb2 {[%clk 0:00:02]} 48. Kxd4 {[%clk 0:00:41]} 1-0

[Event "December 5 Early 2023"]
[Site "https://www.chess.com"]
[Date "2023.12.05"]
[Round "5"]
[White "Eugene, Floryan"]
[Black "Shuvalova, Polina"]
[Result "0-1"]
[Board "86"]
[TimeControl "180+1"]
[WhiteFideId "20694784"]
[BlackFideId "24171760"]
[WhiteElo "2519"]
[BlackElo "2848"]
[WhiteTeam "FRA"]
[BlackTeam "RUS"]
[WhiteClock "0:00:00"]
[BlackClock "0:00:50"]

1. d4 {[%clk 0:03:00]}  Nf6 {[%clk 0:02:59]} 2. c4 {[%clk 0:03:00]}  e6 {[%clk 0:03:00]} 3. g4 {[%clk 0:03:01]}  d5 {[%clk 0:03:01]} 4. g5 {[%clk 0:03:01]}  Nfd7 {[%clk 0:02:54]} 5. Bg2 {[%clk 0:03:01]}  Bb4+ {[%clk 0:02:49]} 6. Kf1 {[%clk 0:02:59]}  c6 {[%clk 0:02:40]} 7. Nc3 {[%clk 0:02:51]}  dxc4 {[%clk 0:02:36]} 8. Bf4 {[%clk 0:02:45]}  Nb6 {[%clk 0:02:33]} 9. e4 {[%clk 0:02:33]}  Na6 {[%clk 0:02:18]} 10. Nf3 {[%clk 0:02:24]}  Be7 {[%clk 0:02:15]} 11. Qe2 {[%clk 0:02:21]}  Nb4 {[%clk 0:02:13]} 12. h4 {[%clk 0:02:08]}  Nd3 {[%clk 0:02:03]} 13. Bg3 {[%clk 0:01:54]}  c5 {[%clk 0:02:03]} 14. Rd1 {[%clk 0:01:28]}  cxd4 {[%clk 0:02:00]} 15. Nb5 {[%clk 0:01:28]}  O-O {[%clk 0:01:45]} 16. Nc7 {[%clk 0:01:28]}  Rb8 {[%clk 0:01:41]} 17. b3 {[%clk 0:01:27]}  e5 {[%clk 0:01:34]} 18. bxc4 {[%clk 0:00:37]}  Qxc7 {[%clk 0:01:26]} 19. Qxd3 {[%clk 0:00:33]}  Bd6 {[%clk 0:01:26]} 20. Rc1 {[%clk 0:00:27]}  Nd7 {[%clk 0:01:24]} 21. h5 {[%clk 0:00:18]}  b5 {[%clk 0:01:21]} 22. g6 {[%clk 0:00:14]}  Nc5 {[%clk 0:01:20]} 23. Qe2 {[%clk 0:00:14]}  bxc4 {[%clk 0:01:15]} 24. Qxc4 {[%clk 0:00:12]}  Ba6 {[%clk 0:01:13]} 25. Qxa6 {[%clk 0:00:11]}  Nxa6 {[%clk 0:01:14]} 26. Rxc7 {[%clk 0:00:11]}  Nxc7 {[%clk 0:01:11]} 27. gxh7+ {[%clk 0:00:10]}  Kxh7 {[%clk 0:01:11]} 28. Ke2 {[%clk 0:00:05]}  f6 {[%clk 0:01:09]} 29. h6 {[%clk 0:00:06]}  g6 {[%clk 0:01:09]} 30. Rc1 {[%clk 0:00:03]}  Ne6 {[%clk 0:01:06]} 31. Bh3 {[%clk 0:00:02]}  Nc5 {[%clk 0:01:03]} 32. Nd2 {[%clk 0:00:01]}  Rb2 {[%clk 0:01:00]} 33. Kd1 {[%clk 0:00:01]}  Rxa2 {[%clk 0:00:53]} 34. f4 {[%clk 0:00:00]}  Kxh6 {[%clk 0:00:50]} 0-1

[Event "December 5 Early 2023"]
[Site "https://www.chess.com"]
[Date "2023.12.05"]
[Round "5"]
[White "Korchmar, Vasiliy"]
[Black "Andreev, Konstantin"]
[Result "0-1"]
[Board "90"]
[TimeControl "180+1"]
[WhiteFideId "24131750"]
[BlackFideId "24239305"]
[WhiteElo "2754"]
[BlackElo "2513"]
[WhiteTeam "RUS"]
[BlackTeam "ITA"]
[WhiteClock "0:00:00"]
[BlackClock "0:00:20"]

1. e4 {[%clk 0:03:00]}  c5 {[%clk 0:02:59]} 2. d4 {[%clk 0:03:00]}  cxd4 {[%clk 0:03:00]} 3. Qxd4 {[%clk 0:03:00]}  Nc6 {[%clk 0:03:00]} 4. Qd3 {[%clk 0:02:59]}  e6 {[%clk 0:03:00]} 5. Nc3 {[%clk 0:02:59]}  a6 {[%clk 0:03:00]} 6. Qg3 {[%clk 0:02:52]}  b5 {[%clk 0:02:59]} 7. Nf3 {[%clk 0:02:38]}  b4 {[%clk 0:02:56]} 8. Na4 {[%clk 0:02:35]}  Nf6 {[%clk 0:02:51]} 9. Bd3 {[%clk 0:02:33]}  d6 {[%clk 0:02:43]} 10. O-O {[%clk 0:02:19]}  Nh5 {[%clk 0:02:37]} 11. Qh3 {[%clk 0:02:04]}  Nf6 {[%clk 0:02:35]} 12. Qg3 {[%clk 0:02:02]}  Nh5 {[%clk 0:02:34]} 13. Qh3 {[%clk 0:02:00]}  Nf6 {[%clk 0:02:32]} 14. Bg5 {[%clk 0:01:51]}  Be7 {[%clk 0:02:30]} 15. Rad1 {[%clk 0:01:49]}  h6 {[%clk 0:02:29]} 16. e5 {[%clk 0:01:45]}  dxe5 {[%clk 0:02:13]} 17. Be4 {[%clk 0:01:35]}  Qc7 {[%clk 0:02:11]} 18. Bxf6 {[%clk 0:01:12]}  Bxf6 {[%clk 0:02:08]} 19. Nc5 {[%clk 0:01:07]}  O-O {[%clk 0:02:04]} 20. g4 {[%clk 0:01:05]}  Be7 {[%clk 0:01:55]} 21. Nxe5 {[%clk 0:00:49]}  Bxc5 {[%clk 0:01:35]} 22. Nxc6 {[%clk 0:00:47]}  Bb7 {[%clk 0:01:34]} 23. Qg2 {[%clk 0:00:46]}  Kh8 {[%clk 0:01:30]} 24. g5 {[%clk 0:00:28]}  f5 {[%clk 0:01:23]} 25. gxf6 {[%clk 0:00:21]}  Rxf6 {[%clk 0:01:08]} 26. Kh1 {[%clk 0:00:17]}  Rc8 {[%clk 0:01:04]} 27. Ne5 {[%clk 0:00:09]}  Qxe5 {[%clk 0:01:02]} 28. Bxb7 {[%clk 0:00:10]}  Rcf8 {[%clk 0:01:03]} 29. f3 {[%clk 0:00:08]}  Rf5 {[%clk 0:00:54]} 30. Be4 {[%clk 0:00:07]}  Rg5 {[%clk 0:00:54]} 31. Qh3 {[%clk 0:00:07]}  Qxb2 {[%clk 0:00:50]} 32. Qxe6 {[%clk 0:00:04]}  a5 {[%clk 0:00:36]} 33. h4 {[%clk 0:00:04]}  Rh5 {[%clk 0:00:35]} 34. Qg6 {[%clk 0:00:05]}  Rxh4+ {[%clk 0:00:35]} 35. Kg2 {[%clk 0:00:05]}  Rxe4 {[%clk 0:00:30]} 36. Qxe4 {[%clk 0:00:04]}  Qf6 {[%clk 0:00:28]} 37. Rd7 {[%clk 0:00:03]}  Bd6 {[%clk 0:00:26]} 38. Rd1 {[%clk 0:00:02]}  Bf4 {[%clk 0:00:21]} 39. R1d5 {[%clk 0:00:00]}  Qh4 {[%clk 0:00:20]} 0-1

[Event "December 5 Early 2023"]
[Site "https://www.chess.com"]
[Date "2023.12.05"]
[Round "5"]
[White "Atakhan, Abtin"]
[Black "Rodriguez Fontecha, Marcos"]
[Result "1-0"]
[Board "92"]
[TimeControl "180+1"]
[WhiteFideId "22502203"]
[BlackFideId "2256576"]
[WhiteElo "2726"]
[BlackElo "2508"]
[WhiteTeam "IRI"]
[BlackTeam "ESP"]
[WhiteClock "0:01:19"]
[BlackClock "0:00:45"]

1. c4 {[%clk 0:03:00]}  c6 {[%clk 0:02:59]} 2. Nf3 {[%clk 0:03:00]}  d5 {[%clk 0:03:00]} 3. g3 {[%clk 0:03:01]}  Nf6 {[%clk 0:02:30]} 4. Bg2 {[%clk 0:03:01]}  g6 {[%clk 0:02:30]} 5. b3 {[%clk 0:03:01]}  Bg7 {[%clk 0:02:30]} 6. Bb2 {[%clk 0:03:01]}  O-O {[%clk 0:02:30]} 7. O-O {[%clk 0:03:02]}  a6 {[%clk 0:02:30]} 8. d4 {[%clk 0:02:56]}  b5 {[%clk 0:02:30]} 9. Nbd2 {[%clk 0:02:54]}  Bb7 {[%clk 0:02:29]} 10. Ne5 {[%clk 0:02:51]}  Nbd7 {[%clk 0:02:28]} 11. Nd3 {[%clk 0:02:46]}  Re8 {[%clk 0:02:22]} 12. Qc2 {[%clk 0:02:45]}  Rc8 {[%clk 0:02:21]} 13. a4 {[%clk 0:02:43]}  bxc4 {[%clk 0:02:16]} 14. bxc4 {[%clk 0:02:44]}  c5 {[%clk 0:02:17]} 15. Qb3 {[%clk 0:02:36]}  dxc4 {[%clk 0:02:03]} 16. Qxb7 {[%clk 0:02:29]}  cxd3 {[%clk 0:02:03]} 17. Qxa6 {[%clk 0:02:29]}  dxe2 {[%clk 0:01:26]} 18. Qxe2 {[%clk 0:02:29]}  Qb6 {[%clk 0:01:23]} 19. Nc4 {[%clk 0:02:26]}  Qa6 {[%clk 0:01:23]} 20. Rfc1 {[%clk 0:02:02]}  cxd4 {[%clk 0:01:21]} 21. Bxd4 {[%clk 0:02:01]}  e5 {[%clk 0:01:21]} 22. Be3 {[%clk 0:01:58]}  Rc7 {[%clk 0:01:13]} 23. Qa2 {[%clk 0:01:52]}  Rec8 {[%clk 0:01:11]} 24. Bf1 {[%clk 0:01:33]}  Nd5 {[%clk 0:01:10]} 25. Nxe5 {[%clk 0:01:26]}  Bxe5 {[%clk 0:01:00]} 26. Bxa6 {[%clk 0:01:24]}  Bxa1 {[%clk 0:00:45]} 27. Bxc8 {[%clk 0:01:19]} 1-0

[Event "December 5 Early 2023"]
[Site "https://www.chess.com"]
[Date "2023.12.05"]
[Round "5"]
[White "Devaev, Alexander"]
[Black "Matinian, Nikita"]
[Result "1-0"]
[Board "93"]
[TimeControl "180+1"]
[WhiteFideId "4169395"]
[BlackFideId "24129100"]
[WhiteElo "2506"]
[BlackElo "2715"]
[WhiteTeam "RUS"]
[BlackTeam "FID"]
[WhiteClock "0:00:08"]
[BlackClock "0:00:00"]

1. d4 {[%clk 0:02:28]}  Nf6 {[%clk 0:02:59]} 2. c4 {[%clk 0:02:25]}  g6 {[%clk 0:02:59]} 3. Nc3 {[%clk 0:02:26]}  Bg7 {[%clk 0:02:59]} 4. e4 {[%clk 0:02:27]}  d6 {[%clk 0:02:59]} 5. Nf3 {[%clk 0:02:27]}  O-O {[%clk 0:02:59]} 6. h3 {[%clk 0:02:28]}  e5 {[%clk 0:02:59]} 7. d5 {[%clk 0:02:29]}  Nh5 {[%clk 0:02:59]} 8. Nh2 {[%clk 0:02:28]}  Nf4 {[%clk 0:02:58]} 9. Be3 {[%clk 0:02:27]}  Na6 {[%clk 0:02:57]} 10. Qd2 {[%clk 0:02:13]}  f5 {[%clk 0:02:53]} 11. g3 {[%clk 0:02:08]}  fxe4 {[%clk 0:02:37]} 12. gxf4 {[%clk 0:02:08]}  exf4 {[%clk 0:02:37]} 13. Bxf4 {[%clk 0:01:51]}  Rxf4 {[%clk 0:02:31]} 14. Qxf4 {[%clk 0:01:49]}  Nb4 {[%clk 0:02:32]} 15. Qd2 {[%clk 0:01:35]}  Bf5 {[%clk 0:02:21]} 16. Ng4 {[%clk 0:01:32]}  Qh4 {[%clk 0:02:17]} 17. Ne3 {[%clk 0:01:30]}  Re8 {[%clk 0:02:08]} 18. O-O-O {[%clk 0:01:15]}  a5 {[%clk 0:02:08]} 19. Rg1 {[%clk 0:01:02]}  b6 {[%clk 0:02:06]} 20. Kb1 {[%clk 0:00:44]}  Rf8 {[%clk 0:02:03]} 21. Bg2 {[%clk 0:00:32]}  Nd3 {[%clk 0:01:57]} 22. Rdf1 {[%clk 0:00:24]}  Kh8 {[%clk 0:01:50]} 23. Ka1 {[%clk 0:00:20]}  a4 {[%clk 0:01:36]} 24. a3 {[%clk 0:00:20]}  Bd4 {[%clk 0:01:27]} 25. Ka2 {[%clk 0:00:19]}  Re8 {[%clk 0:01:20]} 26. Ned1 {[%clk 0:00:14]}  Bg7 {[%clk 0:00:50]} 27. Ne3 {[%clk 0:00:12]}  Qf6 {[%clk 0:00:44]} 28. Rb1 {[%clk 0:00:09]}  Qd4 {[%clk 0:00:44]} 29. Rgd1 {[%clk 0:00:07]}  Be5 {[%clk 0:00:31]} 30. Bxe4 {[%clk 0:00:07]}  Bxe4 {[%clk 0:00:08]} 31. Nxe4 {[%clk 0:00:07]}  Qxe4 {[%clk 0:00:03]} 32. Qxd3 {[%clk 0:00:08]}  Qf3 {[%clk 0:00:04]} 33. Rf1 {[%clk 0:00:08]}  Qxh3 {[%clk 0:00:04]} 34. Rh1 {[%clk 0:00:07]}  Qd7 {[%clk 0:00:04]} 35. Qxg6 {[%clk 0:00:07]}  Rg8 {[%clk 0:00:02]} 36. Qc2 {[%clk 0:00:08]}  Qf7 {[%clk 0:00:02]} 37. Rh6 {[%clk 0:00:07]}  Rg7 {[%clk 0:00:01]} 38. Rbh1 {[%clk 0:00:08]}  Bf4 {[%clk 0:00:01]} 39. Nf5 {[%clk 0:00:08]}  Bxh6 {[%clk 0:00:00]} 40. Nxh6 {[%clk 0:00:08]} 1-0

[Event "December 5 Early 2023"]
[Site "https://www.chess.com"]
[Date "2023.12.05"]
[Round "5"]
[White "Pourramezanali, Amirreza"]
[Black "Alikhanov, Felix"]
[Result "1-0"]
[Board "94"]
[TimeControl "180+1"]
[WhiteFideId "12511412"]
[BlackFideId "4157427"]
[WhiteElo "2707"]
[BlackElo "2504"]
[WhiteTeam "IRI"]
[BlackTeam "RUS"]
[WhiteClock "0:00:10"]
[BlackClock "0:00:03"]

1. e4 {[%clk 0:02:57]}  e6 {[%clk 0:02:59]} 2. d4 {[%clk 0:02:56]}  d5 {[%clk 0:03:00]} 3. e5 {[%clk 0:02:56]}  c5 {[%clk 0:03:00]} 4. c3 {[%clk 0:02:56]}  Nc6 {[%clk 0:03:00]} 5. Nf3 {[%clk 0:02:56]}  Qb6 {[%clk 0:03:01]} 6. Be2 {[%clk 0:02:56]}  cxd4 {[%clk 0:02:59]} 7. cxd4 {[%clk 0:02:55]}  Nge7 {[%clk 0:03:00]} 8. Nc3 {[%clk 0:02:55]}  Nf5 {[%clk 0:02:59]} 9. Na4 {[%clk 0:02:56]}  Bb4+ {[%clk 0:02:59]} 10. Bd2 {[%clk 0:02:49]}  Qa5 {[%clk 0:02:59]} 11. Bc3 {[%clk 0:02:37]}  a6 {[%clk 0:02:58]} 12. a3 {[%clk 0:02:35]}  Bxc3+ {[%clk 0:02:57]} 13. Nxc3 {[%clk 0:02:28]}  O-O {[%clk 0:02:58]} 14. O-O {[%clk 0:02:28]}  Bd7 {[%clk 0:02:55]} 15. b4 {[%clk 0:02:26]}  Qd8 {[%clk 0:02:54]} 16. Rc1 {[%clk 0:02:13]}  f6 {[%clk 0:02:52]} 17. Bd3 {[%clk 0:02:07]}  fxe5 {[%clk 0:02:45]} 18. dxe5 {[%clk 0:02:05]}  Rc8 {[%clk 0:02:40]} 19. Re1 {[%clk 0:02:02]}  b5 {[%clk 0:02:31]} 20. Ne2 {[%clk 0:02:00]}  Qb6 {[%clk 0:02:15]} 21. Bxf5 {[%clk 0:01:53]}  Rxf5 {[%clk 0:02:14]} 22. Ned4 {[%clk 0:01:54]}  Nxd4 {[%clk 0:02:13]} 23. Rxc8+ {[%clk 0:01:53]}  Bxc8 {[%clk 0:02:13]} 24. Qxd4 {[%clk 0:01:51]}  Qc7 {[%clk 0:02:10]} 25. Qe3 {[%clk 0:01:41]}  Bd7 {[%clk 0:01:54]} 26. Nd4 {[%clk 0:01:39]}  Rf7 {[%clk 0:01:52]} 27. Rc1 {[%clk 0:01:39]}  Qb6 {[%clk 0:01:47]} 28. Rc5 {[%clk 0:01:35]}  Qd8 {[%clk 0:01:36]} 29. g3 {[%clk 0:01:33]}  h6 {[%clk 0:01:35]} 30. f4 {[%clk 0:01:33]}  Qf8 {[%clk 0:01:17]} 31. h4 {[%clk 0:01:18]}  Re7 {[%clk 0:01:12]} 32. Kh2 {[%clk 0:01:16]}  Qf7 {[%clk 0:01:03]} 33. Kh3 {[%clk 0:01:15]}  Qg6 {[%clk 0:00:57]} 34. Qf3 {[%clk 0:01:08]}  Rf7 {[%clk 0:00:45]} 35. Qd1 {[%clk 0:00:57]}  h5 {[%clk 0:00:42]} 36. Qe2 {[%clk 0:00:51]}  Rf8 {[%clk 0:00:33]} 37. Rc7 {[%clk 0:00:42]}  Be8 {[%clk 0:00:32]} 38. Qc2 {[%clk 0:00:37]}  Qg4+ {[%clk 0:00:29]} 39. Kh2 {[%clk 0:00:37]}  Rxf4 {[%clk 0:00:19]} 40. Nxe6 {[%clk 0:00:23]}  Rc4 {[%clk 0:00:09]} 41. Rxc4 {[%clk 0:00:16]}  dxc4 {[%clk 0:00:06]} 42. Ng5 {[%clk 0:00:16]}  Bc6 {[%clk 0:00:05]} 43. Qh7+ {[%clk 0:00:16]}  Kf8 {[%clk 0:00:05]} 44. Qh8+ {[%clk 0:00:15]}  Ke7 {[%clk 0:00:04]} 45. Qxg7+ {[%clk 0:00:15]}  Kd8 {[%clk 0:00:03]} 46. Nf7+ {[%clk 0:00:13]}  Ke7 {[%clk 0:00:03]} 47. Qf6+ {[%clk 0:00:09]}  Ke8 {[%clk 0:00:02]} 48. Nd6+ {[%clk 0:00:09]}  Kd7 {[%clk 0:00:03]} 49. Qf7+ {[%clk 0:00:09]}  Kd8 {[%clk 0:00:03]} 50. Qf8+ {[%clk 0:00:09]}  Kd7 {[%clk 0:00:04]} 51. Qf5+ {[%clk 0:00:08]}  Qxf5 {[%clk 0:00:04]} 52. Nxf5 {[%clk 0:00:09]}  Ke6 {[%clk 0:00:04]} 53. Nd4+ {[%clk 0:00:10]}  Kxe5 {[%clk 0:00:04]} 54. Nxc6+ {[%clk 0:00:10]}  Ke4 {[%clk 0:00:05]} 55. g4 {[%clk 0:00:10]}  c3 {[%clk 0:00:06]} 56. Na5 {[%clk 0:00:10]}  c2 {[%clk 0:00:07]} 57. Nb3 {[%clk 0:00:09]}  hxg4 {[%clk 0:00:07]} 58. Kg3 {[%clk 0:00:09]}  Kd3 {[%clk 0:00:08]} 59. h5 {[%clk 0:00:09]}  Kc3 {[%clk 0:00:08]} 60. Nc1 {[%clk 0:00:09]}  Kb2 {[%clk 0:00:07]} 61. Ne2 {[%clk 0:00:09]}  Kxa3 {[%clk 0:00:08]} 62. h6 {[%clk 0:00:10]}  Kxb4 {[%clk 0:00:08]} 63. h7 {[%clk 0:00:10]}  Kb3 {[%clk 0:00:09]} 64. h8=Q {[%clk 0:00:10]}  b4 {[%clk 0:00:10]} 65. Qa1 {[%clk 0:00:10]}  Kc4 {[%clk 0:00:09]} 66. Qb2 {[%clk 0:00:10]}  b3 {[%clk 0:00:03]} 67. Nc1 {[%clk 0:00:10]} 1-0

[Event "December 5 Early 2023"]
[Site "https://www.chess.com"]
[Date "2023.12.05"]
[Round "5"]
[White "Kopczynski, Michal"]
[Black "Kozak, Antoni"]
[Result "0-1"]
[Board "96"]
[TimeControl "180+1"]
[WhiteFideId "1124200"]
[BlackFideId "21832030"]
[WhiteElo "2496"]
[BlackElo "2704"]
[WhiteTeam "POL"]
[BlackTeam "POL"]
[WhiteClock "0:00:03"]
[BlackClock "0:00:26"]

1. e4 {[%clk 0:03:00]}  g6 {[%clk 0:02:58]} 2. d4 {[%clk 0:03:00]}  Bg7 {[%clk 0:02:58]} 3. Nc3 {[%clk 0:03:01]}  a6 {[%clk 0:02:58]} 4. Bg5 {[%clk 0:03:01]}  b5 {[%clk 0:02:57]} 5. Qd2 {[%clk 0:03:01]}  Bb7 {[%clk 0:02:57]} 6. f3 {[%clk 0:03:01]}  Nc6 {[%clk 0:02:43]} 7. d5 {[%clk 0:02:59]}  Nd4 {[%clk 0:02:39]} 8. O-O-O {[%clk 0:02:55]}  c5 {[%clk 0:02:39]} 9. dxc6 {[%clk 0:02:52]}  dxc6 {[%clk 0:02:31]} 10. h4 {[%clk 0:02:48]}  Qa5 {[%clk 0:02:12]} 11. h5 {[%clk 0:02:36]}  O-O-O {[%clk 0:01:50]} 12. Qf2 {[%clk 0:02:23]}  b4 {[%clk 0:01:43]} 13. Nb1 {[%clk 0:02:14]}  Qxa2 {[%clk 0:01:38]} 14. Rd3 {[%clk 0:01:45]}  Ne6 {[%clk 0:01:12]} 15. Rxd8+ {[%clk 0:01:40]}  Kxd8 {[%clk 0:01:13]} 16. Qb6+ {[%clk 0:01:27]}  Kc8 {[%clk 0:01:09]} 17. Qxb4 {[%clk 0:01:27]}  a5 {[%clk 0:00:57]} 18. Qb6 {[%clk 0:01:18]}  Bd4 {[%clk 0:00:51]} 19. Qb3 {[%clk 0:01:04]}  Qxb3 {[%clk 0:00:51]} 20. cxb3 {[%clk 0:01:05]}  Nxg5 {[%clk 0:00:51]} 21. Ne2 {[%clk 0:00:59]}  Be3+ {[%clk 0:00:50]} 22. Kc2 {[%clk 0:00:58]}  Nf6 {[%clk 0:00:50]} 23. hxg6 {[%clk 0:00:57]}  fxg6 {[%clk 0:00:50]} 24. Na3 {[%clk 0:00:44]}  Ba6 {[%clk 0:00:48]} 25. Nc4 {[%clk 0:00:43]}  Bxc4 {[%clk 0:00:48]} 26. bxc4 {[%clk 0:00:44]}  Rd8 {[%clk 0:00:47]} 27. Nc3 {[%clk 0:00:40]}  Rd2+ {[%clk 0:00:46]} 28. Kb3 {[%clk 0:00:40]}  Ne6 {[%clk 0:00:46]} 29. g3 {[%clk 0:00:33]}  Nd4+ {[%clk 0:00:44]} 30. Ka4 {[%clk 0:00:32]}  Rxb2 {[%clk 0:00:42]} 31. e5 {[%clk 0:00:26]}  Nd7 {[%clk 0:00:40]} 32. Rxh7 {[%clk 0:00:22]}  Nc5+ {[%clk 0:00:41]} 33. Kxa5 {[%clk 0:00:15]}  Bd2 {[%clk 0:00:31]} 34. Bh3+ {[%clk 0:00:03]}  Kb8 {[%clk 0:00:26]} 0-1

[Event "December 5 Early 2023"]
[Site "https://www.chess.com"]
[Date "2023.12.05"]
[Round "5"]
[White "Paltrinieri, Nicholas"]
[Black "Filali, Razzouki Marouane"]
[Result "1-0"]
[Board "99"]
[TimeControl "180+1"]
[WhiteFideId "828262"]
[BlackFideId "9003720"]
[WhiteElo "2691"]
[BlackElo "2487"]
[WhiteTeam "ITA"]
[BlackTeam "MAR"]
[WhiteClock "0:01:18"]
[BlackClock "0:00:24"]

1. d4 {[%clk 0:03:00]}  Nf6 {[%clk 0:02:59]} 2. Bf4 {[%clk 0:02:59]}  e6 {[%clk 0:03:00]} 3. e3 {[%clk 0:02:58]}  d5 {[%clk 0:03:01]} 4. Nd2 {[%clk 0:02:56]}  c5 {[%clk 0:03:01]} 5. c3 {[%clk 0:02:56]}  Nc6 {[%clk 0:03:01]} 6. Ngf3 {[%clk 0:02:54]}  Ne4 {[%clk 0:02:56]} 7. Bd3 {[%clk 0:02:52]}  f5 {[%clk 0:02:56]} 8. Ne5 {[%clk 0:02:48]}  g6 {[%clk 0:02:51]} 9. Nxc6 {[%clk 0:02:46]}  bxc6 {[%clk 0:02:52]} 10. Be5 {[%clk 0:02:47]}  Rg8 {[%clk 0:02:49]} 11. f3 {[%clk 0:02:36]}  Ng5 {[%clk 0:02:36]} 12. O-O {[%clk 0:02:32]}  Nf7 {[%clk 0:02:35]} 13. Bg3 {[%clk 0:02:30]}  Bd6 {[%clk 0:02:29]} 14. Qa4 {[%clk 0:02:06]}  Bd7 {[%clk 0:02:06]} 15. Bxd6 {[%clk 0:02:04]}  Nxd6 {[%clk 0:02:07]} 16. dxc5 {[%clk 0:02:04]}  Nf7 {[%clk 0:02:07]} 17. e4 {[%clk 0:02:03]}  Ne5 {[%clk 0:02:06]} 18. Bc2 {[%clk 0:02:03]}  f4 {[%clk 0:01:59]} 19. exd5 {[%clk 0:01:59]}  cxd5 {[%clk 0:01:46]} 20. Qxf4 {[%clk 0:01:58]}  Qc7 {[%clk 0:01:46]} 21. Rfe1 {[%clk 0:01:54]}  Qxc5+ {[%clk 0:01:39]} 22. Kh1 {[%clk 0:01:54]}  Nc6 {[%clk 0:01:31]} 23. Nb3 {[%clk 0:01:50]}  Qf2 {[%clk 0:01:24]} 24. Bd3 {[%clk 0:01:45]}  Rf8 {[%clk 0:01:19]} 25. Qd6 {[%clk 0:01:34]}  Rxf3 {[%clk 0:01:12]} 26. Nc5 {[%clk 0:01:34]}  Rf7 {[%clk 0:00:49]} 27. Nxd7 {[%clk 0:01:29]}  Rd8 {[%clk 0:00:24]} 28. Bb5 {[%clk 0:01:18]} 1-0

[Event "December 5 Early 2023"]
[Site "https://www.chess.com"]
[Date "2023.12.05"]
[Round "5"]
[White "Mazurkiewicz, Michal"]
[Black "Timerkhanov, Alexander"]
[Result "1-0"]
[Board "101"]
[TimeControl "180+1"]
[WhiteFideId "1124943"]
[BlackFideId "24177938"]
[WhiteElo "2483"]
[BlackElo "2657"]
[WhiteTeam "POL"]
[BlackTeam "RUS"]
[WhiteClock "0:00:11"]
[BlackClock "0:00:10"]

1. e4 {[%clk 0:03:00]}  c6 {[%clk 0:02:59]} 2. d3 {[%clk 0:03:00]}  d5 {[%clk 0:03:00]} 3. Nd2 {[%clk 0:03:00]}  g6 {[%clk 0:02:59]} 4. Ngf3 {[%clk 0:03:01]}  Bg7 {[%clk 0:02:59]} 5. g3 {[%clk 0:03:02]}  e5 {[%clk 0:02:58]} 6. Bg2 {[%clk 0:03:02]}  Ne7 {[%clk 0:02:59]} 7. O-O {[%clk 0:03:03]}  O-O {[%clk 0:02:59]} 8. Re1 {[%clk 0:03:03]}  dxe4 {[%clk 0:02:53]} 9. dxe4 {[%clk 0:03:01]}  Be6 {[%clk 0:02:51]} 10. Qe2 {[%clk 0:03:01]}  h6 {[%clk 0:02:48]} 11. Nc4 {[%clk 0:03:01]}  Nd7 {[%clk 0:02:47]} 12. Rd1 {[%clk 0:02:48]}  Qc7 {[%clk 0:02:46]} 13. a4 {[%clk 0:02:22]}  f5 {[%clk 0:02:42]} 14. Nh4 {[%clk 0:02:05]}  f4 {[%clk 0:02:38]} 15. b3 {[%clk 0:02:03]}  g5 {[%clk 0:02:31]} 16. Ba3 {[%clk 0:02:03]}  c5 {[%clk 0:02:29]} 17. Nf5 {[%clk 0:02:03]}  Nxf5 {[%clk 0:01:59]} 18. exf5 {[%clk 0:02:04]}  Bxf5 {[%clk 0:01:56]} 19. Nd6 {[%clk 0:02:04]}  Bg6 {[%clk 0:01:47]} 20. Bxb7 {[%clk 0:01:51]}  Rab8 {[%clk 0:01:41]} 21. Be4 {[%clk 0:01:41]}  Bxe4 {[%clk 0:01:35]} 22. Qxe4 {[%clk 0:01:41]}  Nf6 {[%clk 0:01:19]} 23. Qc4+ {[%clk 0:01:25]}  Kh7 {[%clk 0:01:17]} 24. Qxc5 {[%clk 0:01:25]}  Qd7 {[%clk 0:01:04]} 25. Qxe5 {[%clk 0:01:08]}  fxg3 {[%clk 0:00:49]} 26. fxg3 {[%clk 0:00:58]}  Ng4 {[%clk 0:00:48]} 27. Qe4+ {[%clk 0:00:56]}  Kh8 {[%clk 0:00:47]} 28. Nc4 {[%clk 0:00:42]}  Qc8 {[%clk 0:00:21]} 29. Bxf8 {[%clk 0:00:42]}  Bxf8 {[%clk 0:00:21]} 30. Nd6 {[%clk 0:00:11]}  Qd8 {[%clk 0:00:18]} 31. Qxg4 {[%clk 0:00:10]}  Bxd6 {[%clk 0:00:17]} 32. Qd4+ {[%clk 0:00:11]}  Kh7 {[%clk 0:00:10]} 33. Qxd6 {[%clk 0:00:11]} 1-0